bitfinex/quotes_ETHUSD_20240719
["timestamp","ask_amount","ask_price","bid_price","bid_amount"]
[1721347740880,1.045,3424.3,3424.0,2.92054]
[1721347741273,0.03829465,3424.2,3424.0,2.92054]
[1721347741475,0.03829465,3424.2,3423.8,5.84138]
[1721347741782,0.03825611,3424.1,3423.8,2.92066]
[1721347741985,1.045,3424.3,3423.8,2.92066]
[1721347742186,0.03829124,3424.2,3423.8,2.92066]
[1721347742384,1.045,3424.3,3423.8,2.92066]
[1721347742705,0.03829124,3424.2,3423.8,2.92066]
[1721347742873,0.03829124,3424.2,3423.8,5.84132]
[1721347743071,1.045,3424.3,3423.8,5.84132]
[1721347743272,0.03825611,3424.1,3423.8,2.92066]
[1721347743591,0.03822098,3424.0,3423.8,2.92066]
[1721347743761,1.045,3424.3,3423.8,2.92066]
[1721347743961,0.03829124,3424.2,3423.8,2.92066]
[1721347744164,1.045,3424.3,3423.8,2.92066]
[1721347744389,1.045,3423.9,3423.4,2.92103]
[1721347744597,1.045,3423.7,3423.4,2.92103]
[1721347744838,0.03800923,3423.6,3423.4,2.92103]
[1721347745193,1.045,3423.5,3423.2,2.9212]
[1721347745394,1.045,3423.5,3423.2,5.84238]
[1721347745395,0.03791279,3423.4,3423.2,5.84238]
[1721347745625,0.03791279,3423.4,3423.2,2.92118]
[1721347745788,0.03791279,3423.4,3423.2,5.84236]
[1721347746067,1.045,3423.7,3423.2,5.84236]
[1721347746266,1.045,3423.7,3423.2,2.92118]
[1721347746509,0.03798307,3423.6,3423.2,2.92118]
[1721347746714,0.03798307,3423.6,3423.4,2.92105]
[1721347748410,1.045,3423.5,3422.6,3.0]
[1721347748755,1.045,3423.3,3422.7,3.0]
[1721347748871,1.045,3423.3,3422.7,2.92162]
[1721347748872,3.9662,3423.3,3422.7,2.92162]
[1721347749209,2.95877262,3423.2,3422.5,5.26666]
[1721347750004,0.03753262,3423.2,3422.5,5.26666]
[1721347750869,0.03753262,3423.2,3422.7,2.92161]
[1721347751883,0.03753262,3423.2,3422.8,2.92153]
[1721347752084,1.045,3423.3,3422.7,2.92161]
[1721347753177,1.045,3423.1,3422.7,2.92161]
[1721347753374,1.045,3423.1,3422.5,5.26671]
[1721347753375,2.92163,3422.8,3422.2,2.3464]
[1721347753630,2.92163,3422.8,3422.1,5.9758652]
[1721347753631,1.045,3422.6,3422.1,5.9758652]
[1721347754120,0.03287106,3422.5,3422.1,5.9758652]
[1721347754322,0.03287106,3422.5,3422.1,2.9758652]
[1721347754819,0.03287106,3422.5,3422.2,2.92207]
[1721347756067,1.045,3422.4,3422.2,2.92207]
[1721347756324,1.045,3422.4,3422.1,2.9758752]
[1721347756523,0.03143157,3422.3,3422.1,2.9758752]
[1721347756883,1.045,3422.5,3422.1,2.9758752]
[1721347757785,0.03045128,3422.4,3422.3,2.922]
[1721347761525,0.03045128,3422.4,3422.1,2.9758752]
[1721347761730,1.045,3422.3,3422.1,2.9758752]
[1721347761898,1.045,3422.3,3422.1,5.8979852]
[1721347762104,0.02835703,3422.2,3422.1,5.8979852]
[1721347762346,1.045,3422.3,3422.1,5.8979852]
[1721347762531,0.02835703,3422.2,3422.1,2.9758152]
[1721347762939,1.045,3422.3,3422.2,2.92209]
[1721347763308,0.02839221,3422.3,3422.2,5.84418]
[1721347763744,1.045,3422.7,3422.5,2.92176]
[1721347764041,0.45797628,3423.2,3422.4,2.3828]
[1721347764253,1.045,3423.0,3422.9,2.92149]
[1721347765605,1.07194245,3423.0,3422.9,2.92149]
[1721347766558,1.07194245,3423.0,3422.7,5.84326]
[1721347767225,1.07194245,3423.0,3422.8,2.92157]
[1721347768324,3.55864245,3423.0,3422.5,2.92179]
[1721347768526,3.55864245,3423.0,3422.3,5.84393]
[1721347768527,1.045,3422.6,3422.3,5.84393]
[1721347768830,0.02677864,3422.5,3422.4,2.9219]
[1721347770429,0.02677864,3422.5,3422.1,2.9758352]
[1721347770626,1.045,3422.4,3422.3,2.92194]
[1721347770831,1.07173142,3422.4,3422.1,2.9758352]
[1721347771016,1.045,3422.2,3422.1,2.9758352]
[1721347771247,1.07169532,3422.2,3422.1,2.9758352]
[1721347772343,0.02669532,3422.2,3422.1,2.9758352]
[1721347772673,1.045,3422.2,3422.1,2.9758352]
[1721347773188,1.07169532,3422.2,3422.1,2.9758352]
[1721347773539,0.02669532,3422.2,3422.1,2.9758352]
[1721347773854,1.045,3422.4,3422.2,2.92208]
[1721347775168,1.045,3422.4,3422.1,0.0537052]
[1721347775892,1.045,3422.4,3422.1,2.9758752]
[1721347777568,0.0267197,3422.3,3422.1,2.9758752]
[1721347777753,1.045,3422.2,3422.1,0.0537052]
[1721347778078,1.69681945,3422.2,3422.1,0.0537052]
[1721347780386,1.67014697,3422.2,3422.1,0.0537052]
[1721347781587,2.9219,3422.5,3422.1,0.0537052]
[1721347781791,1.045,3422.2,3422.1,0.0537052]
[1721347783559,2.92192,3422.4,3422.1,0.0537052]
[1721347783775,1.045,3422.2,3422.1,0.0537052]
[1721347784270,1.045,3422.3,3422.1,0.0537052]
[1721347785301,1.045,3422.3,3422.1,2.9758552]
[1721347785466,1.045,3422.3,3422.1,2.4424052]
[1721347785661,1.045,3422.5,3422.1,2.4424052]
[1721347786167,1.045,3422.3,3422.1,2.4424052]
[1721347786378,1.045,3422.3,3422.1,0.0537052]
[1721347787392,1.733865,3422.3,3422.1,0.0537052]
[1721347787569,4.655885,3422.3,3422.1,0.0537052]
[1721347788387,5.90309229,3422.2,3422.1,0.0537052]
[1721347788607,6.88918,3422.2,3422.1,0.0537052]
[1721347788895,5.84418,3422.2,3422.1,0.0537052]
[1721347789077,8.0809905,3422.2,3422.1,0.0537052]
[1721347789306,13.3711805,3422.2,3422.1,0.0537052]
[1721347790071,9.4040905,3422.2,3422.1,0.0537052]
[1721347790375,10.4490905,3422.2,3422.1,0.0537052]
[1721347795495,4.1139005,3422.2,3422.1,0.0537052]
[1721347795694,5.1589005,3422.2,3422.1,0.0537052]
[1721347796006,3.96709,3422.2,3422.1,0.0537052]
[1721347796208,9.43519229,3422.2,3422.1,0.0537052]
[1721347796414,12.43519229,3422.2,3422.1,0.0537052]
[1721347797801,12.37628,3422.2,3422.1,0.0537052]
[1721347798022,1.045,3422.2,3422.1,0.0537052]
[1721347800300,2.92189,3422.5,3422.1,0.0537052]
[1721347800535,1.045,3422.2,3422.1,0.0537052]
[1721347802039,1.045,3422.2,3422.1,0.0037052]
[1721347804703,1.045,3422.2,3422.1,2.9258852]
[1721347805702,1.045,3422.5,3422.2,2.3104]
[1721347806023,1.045,3422.5,3422.3,2.92198]
[1721347807207,1.045,3422.5,3422.2,2.3104]
[1721347807414,1.045,3422.3,3422.1,0.0037052]
[1721347809848,1.045,3422.3,3422.1,2.9258752]
[1721347810505,1.045,3422.3,3422.1,0.0037052]
[1721347815737,1.045,3422.3,3422.1,2.9258752]
[1721347816263,2.4967,3423.0,3422.6,2.92174]
[1721347816264,1.045,3423.0,3422.6,2.92174]
[1721347816462,1.045,3422.8,3422.5,2.92182]
[1721347817828,1.045,3422.8,3422.6,2.92174]
[1721347818843,1.045,3422.8,3422.6,2.92168]
[1721347819042,1.045,3422.8,3422.7,2.92167]
[1721347819373,1.045,3423.0,3422.7,2.92167]
[1721347819668,1.045,3423.0,3422.8,5.28068]
[1721347820740,1.045,3423.0,3422.8,2.3591]
[1721347821871,1.045,3423.0,3422.8,5.28068]
[1721347822871,1.045,3423.5,3423.3,2.9211]
[1721347823375,1.045,3423.5,3423.3,5.2457]
[1721347824079,0.45792738,3423.7,3423.3,5.2457]
[1721347824246,1.50292738,3423.7,3423.5,2.92098]
[1721347826430,1.045,3423.7,3423.5,2.92098]
[1721347826633,1.045,3423.7,3423.6,2.9209]
[1721347826928,1.045,3423.9,3423.6,2.9209]
[1721347827741,1.045,3424.1,3423.7,2.92074]
[1721347828291,1.045,3424.1,3423.8,2.3077]
[1721347829155,1.045,3424.1,3423.9,2.92062]
[1721347829355,1.045,3424.1,3423.8,2.3077]
[1721347829556,1.045,3423.9,3423.8,2.3077]
[1721347830457,1.045,3423.9,3423.8,5.22843]
[1721347831326,1.045,3424.1,3423.8,5.22843]
[1721347831536,1.045,3424.1,3423.9,2.92062]
[1721347831769,0.05283759,3424.0,3423.9,2.92062]
[1721347833464,1.045,3424.5,3424.1,2.92046]
[1721347833713,1.045,3424.5,3424.2,2.92038]
[1721347834238,1.045,3424.5,3424.4,2.393]
[1721347834637,1.045,3424.5,3424.4,5.31321]
[1721347835391,1.09756875,3424.5,3424.4,5.31321]
[1721347835888,1.09756875,3424.5,3424.4,2.393]
[1721347836370,0.05256875,3424.5,3424.4,2.393]
[1721347836585,0.05256875,3424.5,3424.4,5.31321]
[1721347836783,0.45787482,3424.7,3424.4,5.31321]
[1721347836979,0.05268603,3424.5,3424.4,5.31321]
[1721347837178,0.45787482,3424.7,3424.4,5.31321]
[1721347837372,0.05268603,3424.5,3424.4,5.31321]
[1721347837568,0.45787482,3424.7,3424.4,5.31321]
[1721347837779,0.05268603,3424.5,3424.4,5.31321]
[1721347837978,0.45787482,3424.7,3424.4,5.31321]
[1721347838170,0.05268949,3424.5,3424.4,5.31321]
[1721347838349,2.91972,3425.0,3424.4,5.31321]
[1721347838550,0.05268949,3424.5,3424.4,5.31321]
[1721347838789,0.45774486,3424.8,3424.4,5.31321]
[1721347839396,0.05275798,3424.7,3424.4,5.31321]
[1721347839763,0.45774486,3424.8,3424.4,5.31321]
[1721347839950,0.05272374,3424.6,3424.5,2.92013]
[1721347840146,5.83885,3425.4,3424.7,2.91991]
[1721347840347,2.9194,3425.4,3424.7,2.91991]
[1721347840969,5.83884,3425.4,3424.7,2.91991]
[1721347841146,2.9194,3425.4,3424.7,2.91991]
[1721347841484,3.0,3425.3,3424.7,2.91991]
[1721347842060,3.46224,3425.4,3424.8,2.91987]
[1721347842245,3.46224,3425.4,3424.9,2.322]
[1721347842445,0.05297945,3425.3,3424.9,2.322]
[1721347843094,0.05297945,3425.3,3424.9,5.24178]
[1721347845167,0.05297945,3425.3,3425.0,2.91969]
[1721347845559,5.42822,3425.6,3425.0,2.91969]
[1721347845778,0.05300889,3425.2,3425.0,2.91969]
[1721347845978,5.42822,3425.6,3424.9,5.24179]
[1721347846188,0.05297466,3425.1,3424.9,5.24179]
[1721347846357,2.91936,3425.4,3424.9,5.24179]
[1721347846772,0.05304312,3425.3,3424.9,5.24179]
[1721347846973,2.91997,3424.7,3424.2,7.47]
[1721347847189,2.91997,3424.7,3424.1,2.3858]
[1721347847364,2.97888229,3424.7,3424.1,5.3062]
[1721347847577,0.05280041,3424.6,3424.1,5.3062]
[1721347849467,0.05280041,3424.6,3424.2,2.92037]
[1721347849656,2.509,3425.2,3424.5,2.92005]
[1721347849657,2.91955,3425.2,3424.5,2.92005]
[1721347849876,2.91955,3425.2,3424.6,5.25544]
[1721347850083,0.0529392,3425.1,3424.6,5.25544]
[1721347851375,0.0529392,3425.1,3424.6,5.25538]
[1721347851786,0.0529392,3425.1,3424.7,2.91994]
[1721347853867,0.0529392,3425.1,3424.6,2.3354]
[1721347853868,2.91973,3425.0,3424.6,2.3354]
[1721347854071,2.92011,3424.6,3424.2,7.47]
[1721347854418,0.05303859,3424.5,3424.2,7.47]
[1721347854907,0.05307768,3424.4,3424.2,7.47]
[1721347855262,2.55689392,3425.1,3424.2,10.39038]
[1721347855263,2.91986,3424.9,3424.2,10.39038]
[1721347855480,0.05323297,3424.8,3424.2,10.39038]
[1721347855716,0.05323297,3424.8,3424.2,7.47]
[1721347855717,2.91996,3424.7,3424.2,7.47]
[1721347856001,2.97315874,3424.7,3424.2,7.47]
[1721347856404,2.97315874,3424.7,3424.1,2.92044]
[1721347856799,2.97315874,3424.7,3424.0,2.3716]
[1721347856800,2.92012,3424.6,3424.0,2.3716]
[1721347857002,2.92023,3424.4,3424.0,2.3716]
[1721347857204,2.92035,3424.3,3423.7,10.39075]
[1721347857507,2.9204,3424.2,3423.7,7.47]
[1721347857720,2.97347785,3424.2,3423.7,7.47]
[1721347858920,2.92063,3424.0,3423.7,7.47]
[1721347859122,2.92063,3424.0,3423.4,2.92105]
[1721347859493,0.05291658,3423.9,3423.4,2.92105]
[1721347859822,0.05291658,3423.9,3423.2,5.84237]
[1721347860326,0.05291658,3423.9,3423.2,2.92117]
[1721347860939,2.97358658,3423.9,3423.2,2.92117]
[1721347861286,2.92077,3423.8,3423.1,2.477]
[1721347861487,2.92095,3423.6,3423.1,2.477]
[1721347861800,0.05285403,3423.5,3423.1,2.477]
[1721347862424,2.97391403,3423.5,3423.1,2.477]
[1721347862743,2.92109,3423.4,3423.0,7.47]
[1721347862886,2.92116,3423.3,3422.8,2.92153]
[1721347863096,0.05245039,3423.2,3422.8,2.92153]
[1721347863316,2.92108,3423.4,3422.7,5.40499]
[1721347863733,0.05240996,3423.3,3422.7,2.4834]
[1721347863885,2.92147,3423.0,3422.6,7.47]
[1721347864255,2.97375671,3422.9,3422.6,7.47]
[1721347865600,0.05225671,3422.9,3422.6,7.47]
[1721347865799,0.05225671,3422.9,3422.6,10.3917]
[1721347866117,2.92119,3423.3,3422.6,10.3917]
[1721347866639,0.05229065,3423.2,3422.6,10.3917]
[1721347866941,2.92132,3423.1,3422.6,7.47]
[1721347867085,2.97359473,3423.1,3422.6,7.47]
[1721347868301,2.92141,3423.0,3422.3,2.3106]
[1721347868530,0.05178585,3422.9,3422.3,2.3106]
[1721347868890,2.92141,3423.0,3422.3,2.3106]
[1721347869122,0.05178471,3422.9,3422.4,2.92186]
[1721347869330,0.05178471,3422.9,3422.5,2.92183]
[1721347869622,2.92131,3423.2,3422.5,2.92183]
[1721347869791,0.05174582,3422.8,3422.5,2.92183]
[1721347869991,2.92134,3423.1,3422.5,2.92183]
[1721347870535,0.05181439,3423.0,3422.5,2.92183]
[1721347872507,0.05181439,3423.0,3422.6,0.05842923]
[1721347872720,2.4109,3424.0,3422.6,0.05842923]
[1721347872721,2.92078,3423.8,3423.1,2.92124]
[1721347872928,2.92078,3423.8,3423.2,2.92118]
[1721347873118,0.0503934,3423.7,3423.2,2.92118]
[1721347873353,0.0503934,3423.7,3422.7,7.47]
[1721347873643,2.92112,3423.4,3422.8,2.92158]
[1721347874134,0.05074768,3423.3,3422.8,2.92158]
[1721347874297,2.97190768,3423.3,3422.8,2.92158]
[1721347875824,0.05074768,3423.3,3422.8,2.92158]
[1721347876618,0.05074768,3423.3,3423.0,2.92134]
[1721347877035,2.92075,3423.8,3423.0,2.92134]
[1721347877221,2.92058,3424.0,3423.2,2.92118]
[1721347877417,0.05066465,3423.7,3423.3,2.9211]
[1721347877754,0.05063154,3423.6,3423.3,2.9211]
[1721347877925,0.05063154,3423.6,3423.2,2.92118]
[1721347878148,2.92073,3423.8,3423.2,2.92118]
[1721347878327,0.05064058,3423.5,3423.2,2.92117]
[1721347878530,2.92073,3423.8,3423.2,2.92117]
[1721347878856,0.05063639,3423.4,3423.2,2.92117]
[1721347879161,0.05051926,3423.3,3423.2,2.92117]
[1721347879316,2.92073,3423.8,3423.2,5.84234]
[1721347879522,0.05065631,3423.7,3423.2,5.84234]
[1721347879850,0.05065631,3423.7,3423.3,2.92114]
[1721347880258,2.92073,3423.8,3423.3,2.92114]
[1721347880458,0.05062205,3423.6,3423.3,2.92114]
[1721347880656,0.05065631,3423.7,3423.5,2.92098]
[1721347880959,3.0,3424.1,3423.5,2.92098]
[1721347881621,5.92048,3424.1,3423.5,2.92098]
[1721347883970,2.97135929,3424.0,3423.5,2.92098]
[1721347884167,3.96816372,3424.0,3423.5,2.92098]
[1721347884543,3.96816372,3424.0,3423.3,2.92115]
[1721347884742,2.92064,3423.9,3423.3,2.92115]
[1721347884944,2.97144172,3423.9,3423.3,2.92115]
[1721347885573,2.92078,3423.8,3423.1,2.92126]
[1721347885761,2.97154747,3423.8,3423.2,2.92123]
[1721347886541,2.97154747,3423.8,3423.3,2.92115]
[1721347888069,0.05076747,3423.8,3423.3,2.92115]
[1721347889066,0.05891229,3423.7,3422.7,7.47]
[1721347889375,2.92138,3423.1,3422.5,2.92179]
[1721347889974,0.05001076,3423.0,3422.5,2.92179]
[1721347890456,2.97142076,3423.0,3422.5,2.92179]
[1721347892201,2.9215,3422.9,3422.3,10.39198]
[1721347892423,2.96987785,3422.9,3422.3,13.31392]
[1721347892601,2.96987785,3422.9,3422.4,2.9219]
[1721347893490,0.04837785,3422.9,3422.5,2.92178]
[1721347893895,2.9214,3423.1,3422.5,2.92178]
[1721347894096,0.04667243,3422.8,3422.5,2.92178]
[1721347894266,2.92142,3423.0,3422.4,2.92187]
[1721347894517,0.04663815,3422.7,3422.5,2.92183]
[1721347894671,2.9214,3423.1,3422.5,5.84359]
[1721347894862,0.04674099,3423.0,3422.5,2.92176]
[1721347895894,0.04674099,3423.0,3422.5,5.84353]
[1721347896201,0.04674099,3423.0,3422.6,5.84342]
[1721347896406,0.04674099,3423.0,3422.6,2.9217]
[1721347896710,2.92103,3423.5,3422.8,2.92152]
[1721347896862,0.04670671,3422.9,3422.8,2.92152]
[1721347897378,2.92103,3423.5,3422.8,2.92152]
[1721347897576,0.04670671,3422.9,3422.8,2.92152]
[1721347897784,2.92103,3423.5,3422.8,5.41732]
[1721347897987,0.04670671,3422.9,3422.8,5.41732]
[1721347898185,2.92103,3423.5,3422.9,2.92149]
[1721347898604,0.04687921,3423.4,3422.9,2.92149]
[1721347899753,0.04687921,3423.4,3422.8,2.4958]
[1721347899754,0.04687921,3423.4,3423.2,2.92119]
[1721347899902,2.92071,3423.9,3423.2,2.92119]
[1721347900566,2.92071,3423.9,3423.3,2.92115]
[1721347900810,2.92051,3424.1,3423.3,2.92109]
[1721347901405,3.0,3424.0,3423.3,2.92109]
[1721347901971,3.0,3424.0,3423.5,2.92094]
[1721347903580,0.04700179,3423.9,3423.5,2.92094]
[1721347904831,0.04700179,3423.9,3423.5,2.92092]
[1721347905042,0.04700179,3423.9,3423.6,2.92089]
[1721347905201,6.37825629,3424.2,3423.6,2.92089]
[1721347905729,0.0470703,3424.1,3423.6,2.92089]
[1721347906906,0.0470703,3424.1,3423.5,2.92092]
[1721347907100,2.92052,3424.1,3423.5,2.92092]
[1721347910556,2.92052,3424.1,3423.4,2.3077]
[1721347910834,0.04709925,3424.0,3423.4,2.3077]
[1721347911601,0.04709925,3424.0,3423.7,2.92077]
[1721347911907,2.92039,3424.2,3423.7,2.92077]
[1721347912108,0.0471335,3424.1,3423.7,2.92077]
[1721347912553,2.92029,3424.4,3423.7,2.92077]
[1721347912836,0.04710384,3424.0,3423.7,2.92077]
[1721347913060,5.8407,3424.3,3423.7,2.92077]
[1721347913505,0.04717235,3424.2,3423.7,2.92077]
[1721347914024,2.92047,3424.1,3423.6,2.92089]
[1721347914210,3.96647,3424.1,3423.6,2.92089]
[1721347914411,0.04710384,3424.0,3423.6,2.92089]
[1721347914631,0.04710384,3424.0,3423.7,2.9208]
[1721347915008,0.04710384,3424.0,3423.8,2.92073]
[1721347915218,3.96633,3424.3,3423.8,2.92073]
[1721347915545,1.046,3424.3,3423.8,2.92073]
[1721347915709,0.04717235,3424.2,3423.8,2.92073]
[1721347915904,0.04717235,3424.2,3423.8,5.8414]
[1721347916094,0.0471381,3424.1,3423.9,2.92063]
[1721347916347,0.0471381,3424.1,3424.0,5.38736]
[1721347916551,0.45783478,3424.5,3424.1,2.92045]
[1721347916705,3.96582,3424.9,3424.3,2.92029]
[1721347917220,1.046,3424.7,3424.3,2.92029]
[1721347918139,0.04735987,3424.6,3424.3,2.92029]
[1721347918738,2.91987,3424.8,3424.3,2.92029]
[1721347918951,0.04739411,3424.7,3424.3,2.92029]
[1721347919316,2.91987,3424.8,3424.3,2.92029]
[1721347919520,0.04740584,3424.7,3424.3,2.92029]
[1721347919709,2.91987,3424.8,3424.3,2.92029]
[1721347920105,0.04740584,3424.7,3424.3,2.92029]
[1721347920450,2.91987,3424.8,3424.3,2.92029]
[1721347920648,0.0473716,3424.6,3424.3,2.92029]
[1721347920813,2.91987,3424.8,3424.3,2.92029]
[1721347921032,0.04733736,3424.5,3424.0,2.4668]
[1721347921342,2.92005,3424.6,3424.0,2.4668]
[1721347921343,0.04730311,3424.4,3424.0,2.4668]
[1721347921575,2.92005,3424.6,3424.0,5.38731]
[1721347921740,0.04726886,3424.3,3424.0,5.38731]
[1721347922078,2.92005,3424.6,3424.0,5.38731]
[1721347922293,0.04722288,3424.2,3424.0,5.38731]
[1721347922432,2.92005,3424.6,3424.0,5.38731]
[1721347922956,2.92005,3424.6,3424.1,2.92046]
[1721347923146,0.04732563,3424.5,3424.1,2.92046]
[1721347924336,5.83986,3424.8,3424.1,2.9204]
[1721347924548,2.91991,3424.8,3424.1,2.9204]
[1721347924732,0.04738238,3424.7,3424.1,2.9204]
[1721347925129,2.96739238,3424.7,3424.1,2.9204]
[1721347930410,5.88743238,3424.7,3424.1,2.9204]
[1721347930718,2.96739238,3424.7,3424.1,2.9204]
[1721347932987,2.96739238,3424.7,3424.1,5.84081]
[1721347933196,2.96739238,3424.7,3424.2,2.92038]
[1721347934315,0.04738238,3424.7,3424.3,2.92025]
[1721347934619,0.45776889,3424.9,3424.4,2.92016]
[1721347934786,0.04735536,3424.6,3424.5,2.92008]
[1721347934989,0.45776889,3424.9,3424.5,5.27538]
[1721347935313,0.04736709,3424.6,3424.5,5.27538]
[1721347935506,0.45776889,3424.9,3424.5,5.27538]
[1721347935905,0.04743558,3424.8,3424.5,5.27538]
[1721347936081,0.04743558,3424.8,3424.6,2.97843673]
[1721347936287,0.04743558,3424.8,3424.6,2.92004]
[1721347937391,0.04743558,3424.8,3424.5,2.3553]
[1721347937789,0.04743558,3424.8,3424.5,5.27537]
[1721347938813,0.04743558,3424.8,3424.6,2.92]
[1721347939792,0.04743558,3424.8,3424.5,2.3553]
[1721347940736,0.04743558,3424.8,3424.4,2.92014]
[1721347948826,0.04743558,3424.8,3424.5,2.92012]
[1721347951470,0.04743558,3424.8,3424.3,2.92025]
[1721347951695,0.04743558,3424.8,3424.4,2.92021]
[1721347953003,0.04743558,3424.8,3424.6,2.91998]
[1721347953292,0.04743558,3424.8,3424.7,5.37346]
[1721347953955,2.91942,3425.4,3424.8,2.91987]
[1721347955482,1.045,3425.3,3424.8,2.91987]
[1721347956849,0.04614102,3425.2,3424.8,2.91987]
[1721347957048,1.045,3425.3,3424.8,2.91987]
[1721347957249,0.04610679,3425.1,3424.8,2.91987]
[1721347957443,1.045,3425.3,3424.8,2.91987]
[1721347957706,0.04607256,3425.0,3424.8,2.91987]
[1721347957850,1.045,3425.3,3424.8,2.91987]
[1721347958079,0.04603833,3424.9,3424.8,2.91987]
[1721347958383,1.045,3425.3,3424.8,2.91987]
[1721347958597,0.04603833,3424.9,3424.8,2.91987]
[1721347958779,1.045,3425.3,3424.8,2.91987]
[1721347959298,0.04615274,3425.2,3424.8,2.91987]
[1721347959785,1.045,3425.3,3424.8,2.91987]
[1721347959986,0.04611851,3425.1,3424.8,2.91987]
[1721347960190,0.04615274,3425.2,3424.8,2.91987]
[1721347960370,0.04608428,3425.0,3424.8,2.91987]
[1721347960566,3.96446,3425.3,3424.8,2.91987]
[1721347960762,0.04605005,3424.9,3424.8,2.91987]
[1721347961079,3.96446,3425.3,3424.8,2.91987]
[1721347961263,0.04605005,3424.9,3424.8,2.91987]
[1721347961467,3.96446,3425.3,3424.8,2.91987]
[1721347961653,0.04606178,3424.9,3424.8,2.91987]
[1721347961857,3.96446,3425.3,3424.8,2.91987]
[1721347962087,0.04606178,3424.9,3424.8,2.91987]
[1721347962482,3.96446,3425.3,3424.8,2.91987]
[1721347962798,0.04606178,3424.9,3424.8,2.91987]
[1721347962985,3.96446,3425.3,3424.8,2.91987]
[1721347963168,0.04606178,3424.9,3424.8,2.91987]
[1721347963355,3.96446,3425.3,3424.8,2.91987]
[1721347963555,0.04606178,3424.9,3424.8,2.91987]
[1721347963794,0.04606178,3424.9,3424.7,2.4535]
[1721347964097,3.96446,3425.3,3424.7,5.37346]
[1721347964289,0.04602755,3424.8,3424.7,5.37346]
[1721347964491,3.96446,3425.3,3424.7,5.37346]
[1721347964686,0.04602755,3424.8,3424.7,5.37346]
[1721347964857,3.96446,3425.3,3424.7,5.37346]
[1721347965293,0.0461989,3425.2,3424.7,5.37346]
[1721347969702,2.9657389,3425.2,3424.7,5.37346]
[1721347973919,0.0461989,3425.2,3424.7,5.37341]
[1721347975690,0.04618534,3425.1,3424.7,5.37341]
[1721347975890,2.91954,3425.2,3424.7,5.37341]
[1721347976226,0.04618763,3425.1,3424.7,5.37341]
[1721347976469,2.92008,3424.6,3424.4,9.9101]
[1721347976630,3.96508,3424.6,3424.4,7.47]
[1721347976805,2.92013,3424.5,3424.4,7.47]
[1721347977013,2.96609385,3424.5,3424.4,7.47]
[1721347978739,3.90715123,3424.5,3424.4,7.47]
[1721347979757,12.19111123,3424.5,3424.4,7.47]
[1721347979960,14.25005385,3424.5,3424.4,7.47]
[1721347981449,2.92064,3423.9,3423.8,7.47]
[1721347981760,2.92073,3423.8,3423.4,2.4456]
[1721347981932,1.045,3423.5,3423.4,2.4456]
[1721347982141,3.96605,3423.5,3423.1,2.2775]
[1721347982330,1.045,3423.3,3423.1,2.2775]
[1721347982536,1.045,3423.3,3422.6,2.92172]
[1721347982537,1.045,3423.3,3422.7,2.2775]
[1721347982730,3.96634,3423.1,3422.7,2.2775]
[1721347983123,0.04496537,3423.0,3422.7,2.2775]
[1721347983561,1.045,3423.1,3422.7,2.2775]
[1721347983764,0.04493109,3422.9,3422.7,2.2775]
[1721347983939,1.045,3423.1,3422.7,2.2775]
[1721347984117,0.0448968,3422.8,3422.7,2.2775]
[1721347984324,3.96633,3423.1,3422.7,2.2775]
[1721347984857,0.04496537,3423.0,3422.7,2.2775]
[1721347985892,0.04496537,3423.0,3422.7,5.19915]
[1721347986221,0.04496537,3423.0,3422.7,2.2775]
[1721347986949,0.04496537,3423.0,3422.7,5.19914]
[1721347987264,0.04496537,3423.0,3422.7,2.2775]
[1721347987427,1.045,3422.9,3422.7,2.2775]
[1721347987623,0.04459375,3422.8,3422.7,2.2775]
[1721347987820,0.04459375,3422.8,3422.5,2.92179]
[1721347989355,0.04459375,3422.8,3422.4,2.3124]
[1721347989856,1.045,3422.7,3422.4,2.3124]
[1721347990078,1.08951168,3422.7,3422.4,2.3124]
[1721347993367,1.045,3422.5,3422.1,5.2433852]
[1721347993870,2.92158,3422.8,3422.1,8.1654852]
[1721347993871,1.045,3422.3,3422.1,8.1654852]
[1721347994162,1.045,3422.3,3422.1,5.2433052]
[1721347994369,1.045,3422.3,3422.1,2.3212052]
[1721347994662,0.04411836,3422.2,3422.1,2.3212052]
[1721347994968,1.045,3422.3,3422.1,2.3212052]
[1721347995295,0.04411836,3422.2,3422.1,2.3212052]
[1721347995473,2.92209,3422.2,3422.1,0.0037052]
[1721347995626,3.610999,3422.2,3422.1,0.0037052]
[1721347995825,2.96591869,3422.2,3422.1,0.0037052]
[1721347996227,5.94692098,3422.2,3422.1,0.0037052]
[1721347998333,11.86901098,3422.2,3422.1,0.0037052]
[1721347999266,6.02483098,3422.2,3422.1,0.0037052]
[1721347999568,7.26229808,3422.2,3422.1,0.0037052]
[1721348000464,5.32629579,3422.2,3422.1,0.0037052]
[1721348000672,4.08882869,3422.2,3422.1,0.0037052]
[1721348000973,6.41662869,3422.2,3422.1,0.0037052]
[1721348002739,4.08882869,3422.2,3422.1,0.0037052]
[1721348003354,1.08882869,3422.2,3422.1,0.0037052]
[1721348005162,1.08882869,3422.2,3422.1,2.9258852]
[1721348005493,1.08882869,3422.2,3422.1,5.8480652]
[1721348005695,1.08882869,3422.2,3422.1,2.9258852]
[1721348005841,1.08882869,3422.2,3422.1,0.0037052]
[1721348007082,1.08882869,3422.2,3422.1,2.9258852]
[1721348007989,1.08882869,3422.2,3422.1,5.8480652]
[1721348008569,1.08882869,3422.2,3422.1,2.9258852]
[1721348013502,1.08882869,3422.2,3422.1,5.8480652]
[1721348015261,1.08882869,3422.2,3422.1,8.3281652]
[1721348015704,0.04382869,3422.2,3422.1,11.2503452]
[1721348016006,1.045,3422.5,3422.4,8.76576]
[1721348016303,2.40381229,3423.6,3422.7,5.84334]
[1721348016304,1.045,3422.8,3422.7,5.84334]